fUSD/lending_fUSD_20240328
["ID","MTS","AMOUNT","RATE_DAILY","PERIOD"]
[320842397,1711613443385,-515.79432418,0.00054246,120]
[320842398,1711613443395,-1188.38,0.00054246,120]
[320842399,1711613443405,-2571.74,0.00054246,120]
[320842400,1711613443414,-2543.07,0.00054246,120]
[320842401,1711613443423,-1555.81,0.00054246,120]
[320842402,1711613443433,-1213.65,0.00054246,120]
[320842403,1711613443443,-500.0,0.00054246,120]
[320842404,1711613443452,-531.40175565,0.00054246,120]
[320842405,1711613443462,-500.0,0.00054246,2]
[320842406,1711613443471,-500.0,0.00054246,120]
[320842407,1711613443481,-500.0,0.00054246,30]
[320842408,1711613443490,-500.0,0.00054246,120]
[320842409,1711613443500,-219.11,0.00054247,30]
[320842410,1711613443509,-517.56,0.00054247,30]
[320842411,1711613443519,-415.83,0.00054247,30]
[320842412,1711613443529,-1043.28,0.00054247,30]
[320842413,1711613443539,-415.83,0.00054247,30]
[320842414,1711613443549,-161.19,0.00054247,30]
[320842415,1711613443558,-415.83,0.00054247,30]
[320842416,1711613443567,-415.83,0.00054247,30]
[320842417,1711613443577,-836.89,0.00054247,30]
[320842418,1711613443589,-2000.0,0.0005425,120]
[320842419,1711613443598,-151.63838329,0.00054262,60]
[320842420,1711613443609,-2056.74874768,0.00054262,32]
[320842421,1711613443618,-1833.98,0.00054288,120]
[320842422,1711613443628,-1708.87,0.00054288,120]
[320842423,1711613443638,-1674.77,0.00054288,120]
[320842424,1711613443647,-2322.74,0.00054288,120]
[320842425,1711613443657,-1318.85,0.00054288,120]
[320842426,1711613443666,-1347.38,0.00054288,120]
[320842427,1711613443679,-1640.26,0.00054288,120]
[320842428,1711613443689,-1996.5,0.00054288,120]
[320842429,1711613443698,-1784.68,0.00054288,120]
[320842430,1711613443707,-1386.27,0.00054288,120]
[320842431,1711613443717,-500.0,0.00054288,120]
[320842432,1711613443727,-500.0,0.00054288,120]
[320842433,1711613443736,-901.94,0.00054288,120]
[320842434,1711613443745,-2392.88,0.00054288,120]
[320842435,1711613443755,-2260.91,0.00054288,120]
[320842436,1711613443765,-2871.2,0.00054288,120]
[320842437,1711613443774,-1689.48,0.00054288,120]
[320842438,1711613443784,-500.0,0.00054288,120]
[320842439,1711613443793,-1415.5,0.00054288,120]
[320842440,1711613443803,-500.0,0.00054288,120]
[320842442,1711613443812,-1715.89,0.00054288,120]
[320842443,1711613443822,-1847.25,0.00054288,120]
[320842444,1711613443831,-500.0,0.00054289,120]
[320842445,1711613443842,-500.0,0.00054289,120]
[320842446,1711613443851,-1000.0,0.00054289,120]
[320842447,1711613443861,-18765.3291053,0.0005429,2]
[320842449,1711613443871,-5997.9680759,0.0005429,2]
[320842450,1711613443881,-858.949571,0.0005429,2]
[320842451,1711613443891,-3412.7827593,0.0005429,2]
[320842452,1711613443901,-579.76961,0.0005429,69]
[320842453,1711613443910,-151.0,0.0005429,120]
[320842455,1711613443920,-151.0,0.0005429,120]
[320842456,1711613443929,-151.0,0.0005429,30]
[320842457,1711613443940,-598.382331,0.0005429,120]
[320842458,1711613443950,-598.382331,0.0005429,120]
[320842459,1711613443963,-194.538442,0.0005429,120]
[320842460,1711613443973,-186.082506,0.0005429,14]
[320842461,1711613443982,-182.759332,0.0005429,120]
[320842462,1711613443992,-151.0,0.00054296,120]
[320842463,1711613444002,-1018.42220439,0.00054297,60]
[320842464,1711613444012,-1000.0,0.00054297,2]
[320842465,1711613444021,-5000.0,0.00054298,30]
[320842466,1711613444032,-1056.32,0.00054298,120]
[320842467,1711613444047,-500.0,0.00054298,120]
[320842468,1711613444056,-1858.84,0.00054298,120]
[320842469,1711613444066,-47727.91890491,0.00054299,7]
[320842470,1711613444077,-151.0,0.00054299,60]
[320842471,1711613444087,-151.0,0.00054299,120]
[320842472,1711613444097,-160.29,0.000543,30]
[320842473,1711613444106,-163.03,0.000543,14]
[320842474,1711613444116,-392.94,0.000543,7]
[320842475,1711613444126,-157.49088874,0.000543,60]
[320842476,1711613444136,-678.04918701,0.00054313,7]
[320842477,1711613444145,-678.04918701,0.00054321,7]
[320842478,1711613444155,-305.42222934,0.00054322,7]
[320842479,1711613444164,-678.04918701,0.00054324,7]
[320842480,1711613444174,-7012.66888356,0.00054327,7]
[320842481,1711613444183,-305.42222934,0.00054328,7]
[320842482,1711613444193,-305.42222934,0.00054342,7]
[320842483,1711613444202,-155.69279218,0.00054351,7]
[320842484,1711613444213,-164.25486466,0.00054352,2]
[320842485,1711613444222,-251.90984777,0.00054352,120]
[320842486,1711613444232,-500.0,0.00054352,120]
[320842487,1711613444241,-305.42222934,0.00054357,7]
[320842488,1711613444251,-1000.0,0.00054359,120]
[320842489,1711613444260,-1056.32,0.00054362,120]
[320842490,1711613444271,-291.355108,0.00054362,120]
[320842491,1711613444281,-1785.54,0.00054362,120]
[320842492,1711613444290,-2371.99,0.00054362,120]
[320842493,1711613444300,-500.0,0.00054362,120]
[320842494,1711613444309,-500.0,0.00054362,120]
[320842495,1711613444319,-2065.82,0.00054362,120]
[320842496,1711613444329,-8378.84,0.00054362,120]
[320842497,1711613444339,-1573.83,0.00054362,120]
[320842498,1711613444349,-907.14,0.00054362,120]
[320842499,1711613444359,-2408.18,0.00054362,120]
[320842500,1711613444369,-7639.02,0.00054362,120]
[320842501,1711613444379,-1868.5,0.00054362,120]
[320842502,1711613444388,-500.0,0.00054362,120]
[320842503,1711613444398,-1858.84,0.00054362,120]
[320842504,1711613444407,-57450.89676923,0.00054362,7]
[320842505,1711613444417,-8555.9977615,0.00054363,2]
[320842506,1711613444426,-337.0613399,0.00054363,2]
[320842507,1711613444435,-127557.85389634,0.00054363,2]
[320842511,1711613446577,-705.58,0.00054298,120]
[320842512,1711613446595,-384.39522185,0.00054298,120]
[320842513,1711613446712,-806.94477815,0.00054298,120]
[320842514,1711613446721,-196.19993167,0.00054362,120]
[320842515,1711613446733,-283.28064235,0.00054362,120]
[320842516,1711613446748,-778.82182709,0.00054362,120]
[320842519,1711613447344,-638.61759889,0.00054362,120]
[320842520,1711613447353,-3560.20940646,0.00054363,2]
[320842521,1711613447365,-3874.25334895,0.00054363,2]
[320842522,1711613447385,-500.0,0.00054288,120]
[320842523,1711613447394,-2905.93799452,0.00054363,2]
[320842524,1711613447405,-642.94,0.00054363,2]
[320842525,1711613447437,-6495.62728673,0.00054363,2]
[320842526,1711613447446,-4233.39187532,0.00054363,2]
[320842527,1711613447460,-636.54888878,0.00054363,2]
[320842528,1711613447471,-858.949571,0.00054363,2]
[320842529,1711613447480,-2770.9467054,0.00054363,2]
[320842530,1711613447489,-151.0,0.00054363,60]
[320842531,1711613447499,-151.0,0.00054363,120]
[320842532,1711613447507,-151.0,0.00054363,120]
[320842533,1711613447517,-151.0,0.00054363,120]
[320842534,1711613447526,-151.0,0.00054363,120]
[320842535,1711613447536,-181.16518,0.00054363,30]
[320842536,1711613447545,-598.382331,0.00054363,120]
[320842537,1711613447554,-598.382331,0.00054363,120]
[320842538,1711613447563,-7012.66888356,0.00054365,7]
[320842539,1711613447572,-678.04918701,0.00054367,7]
[320842540,1711613447582,-155.69279218,0.00054381,7]
[320842541,1711613447595,-1000.0,0.0005439,120]
[320842542,1711613447605,-41282.11617392,0.00054391,7]
[320842543,1711613447622,-16168.78059531,0.00054391,7]
[320842544,1711613447631,-155.69279218,0.00054391,7]
[320842545,1711613447640,-7012.66888356,0.00054397,7]
[320842546,1711613447650,-7012.66888356,0.00054398,7]
[320842547,1711613447659,-500.0,0.00054399,120]
[320842548,1711613447669,-153.02,0.000544,8]
[320842549,1711613447679,-153.02,0.000544,8]
[320842550,1711613447690,-153.02,0.000544,8]
[320842551,1711613447700,-8061.74854047,0.0005448,30]
[320842552,1711613447710,-500.0,0.00054482,120]
[320842554,1711613447761,-1056.32,0.00054482,120]
[320842555,1711613447770,-267.31740281,0.00054482,30]
[320842556,1711613447784,-232.68259719,0.00054482,30]
[320842557,1711613447793,-500.0,0.00054482,30]
[320842558,1711613447802,-500.0,0.00054482,30]
[320842559,1711613447811,-500.0,0.00054482,30]
[320842561,1711613447820,-500.0,0.00054482,30]
[320842563,1711613447829,-500.0,0.00054482,120]
[320842565,1711613447840,-1858.84,0.00054482,120]
[320842567,1711613447849,-1896.92,0.00054482,120]
[320842569,1711613447858,-6572.1276763,0.00054483,2]
[320842571,1711613447867,-4588.2575912,0.00054483,2]
[320842573,1711613447877,-337.0613399,0.00054483,2]
[320842575,1711613447886,-337.0613399,0.00054483,2]
[320842577,1711613447895,-3586.62903542,0.00054483,2]
[320842578,1711613448551,-182.90598383,0.00054245,4]
[320842579,1711613448561,-959.44777957,0.00054245,4]
[320842580,1711613448570,-142.29814365,0.00054483,2]
[320842581,1711613449433,-310.624996,0.00054246,120]
[320842582,1711613449625,-1855.335004,0.00054246,120]
[320842583,1711613449634,-500.0,0.00054288,120]
[320842584,1711613449643,-500.0,0.00054288,120]
[320842585,1711613449652,-500.0,0.00054362,120]
[320842586,1711613449661,-500.0,0.00054399,120]
[320842587,1711613449670,-31359.164996,0.00054483,2]
[320842589,1711613629255,152.48626813,0.00040701,35]
[320842592,1711614631756,-503.45588954,0.00030999,4]
[320842593,1711614631765,-200.99411046,0.00031,3]
[320842594,1711614631933,-799.00588954,0.00031,3]
[320842595,1711614631944,-895.4099573,0.00031639,4]
[320842596,1711614631954,-174.62,0.0003164,2]
[320842597,1711614631964,-158.29119659,0.00036337,2]
[320842598,1711614631975,-2873.76429953,0.00036447,4]
[320842599,1711614631985,-716.37487076,0.00036448,4]
[320842600,1711614631995,-158.29119657,0.00037707,2]
[320842601,1711614632004,-176.57,0.00038356,2]
[320842602,1711614632014,-360.75,0.00038633,2]
[320842603,1711614632024,-158.29119657,0.00039078,2]
[320842604,1711614632034,-545.11341717,0.0003948,4]
[320842605,1711614632044,-499.34,0.00039579,15]
[320842607,1711614632054,-1370.20833248,0.0003959,4]
[320842608,1711614632064,-200.0,0.00039699,2]
[320842610,1711614632073,-182.88,0.00039735,2]
[320842612,1711614632082,-150.0,0.000403,5]
[320842614,1711614632091,-5619.51702239,0.00040301,2]
[320842616,1711614632100,-859.93611248,0.00040301,2]
[320842618,1711614632110,-9303.12696,0.0004039,2]
[320842620,1711614632119,-163.16329962,0.00040398,4]
[320842622,1711614632129,-523.68096072,0.00040398,4]
[320842624,1711614632138,-2577.65726799,0.00040398,4]
[320842626,1711614632148,-23214.57795969,0.00040398,4]
[320842628,1711614632157,-5389.01172397,0.00040398,4]
[320842630,1711614632166,-643.90299712,0.00040398,4]
[320842631,1711614632176,-2000.0,0.00040399,2]
[320842633,1711614632185,-8243.82502139,0.000404,30]
[320842645,1711614637499,-375.0,0.000355,2]
[320842646,1711614637508,-70055.59673775,0.000404,30]
[320842647,1711614637557,-999.91304021,0.000404,30]
[320842648,1711614637569,-10012.54679052,0.000404,30]
[320842649,1711614637732,-276.54,0.000404,30]
[320842654,1711614639840,-1409.29548103,0.000404,30]
[320842708,1711614642530,-511.61173723,0.000404,30]
[320842709,1711614642692,-20222.75563126,0.000404,30]
[320842710,1711614642864,-2887.97559626,0.000404,30]
[320842723,1711615075672,250.0,0.00027,3]
[320842731,1711615831971,-1681.92763949,0.00026082,2]
[320842732,1711615831981,-1240.32252482,0.00026083,2]
[320842733,1711615831992,-400.0,0.00026084,2]
[320842734,1711615832002,-437.26933827,0.00026084,2]
[320842735,1711615832011,-406.89005697,0.00026085,2]
[320842736,1711615832021,-450.0,0.00026085,2]
[320842737,1711615832032,-160.6108469,0.00026086,2]
[320842738,1711615832041,-9568.17459355,0.00026179,2]
[320842739,1711615832060,-25500.23641127,0.00026179,2]
[320842740,1711615832070,-4300.63296631,0.0002618,2]
[320842741,1711615832081,-2138.90171437,0.00026181,2]
[320842742,1711615832090,-545.11341717,0.0002619,2]
[320842743,1711615832102,-150.0,0.00026982,2]
[320842744,1711615832113,-2201.89288965,0.00027,2]
[320842745,1711615832124,-359.56252001,0.00027,2]
[320842746,1711615832135,-300.0,0.00029,3]
[320842747,1711615832147,-499.99,0.00029,2]
[320842748,1711615832156,-1924.22,0.00029,2]
[320842749,1711615832168,-174.62,0.00029571,2]
[320842750,1711615832179,-160.61084689,0.00029665,2]
[320842751,1711615832189,-210.0,0.0002968,2]
[320842752,1711615832198,-293.0,0.00032648,2]
[320842753,1711615832209,-160.61084689,0.00033243,2]
[320842754,1711615832218,-150.0,0.00034548,10]
[320842755,1711615832228,-716.37487076,0.00034706,4]
[320842756,1711615832238,-161.997483,0.00035373,2]
[320842757,1711615832248,-1249.215123,0.00035373,2]
[320842758,1711615832257,-1531.08,0.00035373,2]
[320842759,1711615832267,-1249.215123,0.00035815,2]
[320842760,1711615832276,-556.74,0.00035815,2]
[320842761,1711615832286,-161.997483,0.00035962,2]
[320842762,1711615832296,-1249.215123,0.00036257,2]
[320842763,1711615832305,-385.07,0.00036334,2]
[320842764,1711615832315,-161.997483,0.00036552,2]
[320842765,1711615832325,-695.07,0.00036685,2]
[320842766,1711615832334,-2149.0,0.00036695,2]
[320842767,1711615832343,-1249.215123,0.00036699,2]
[320842768,1711615832353,-20275.48766552,0.0003671,2]
[320842770,1711615832370,-2633.93578811,0.0003671,2]
[320842772,1711615832383,-990.57654637,0.0003671,2]
[320842775,1711615832393,-160.61084689,0.00036822,2]
[320842778,1711615832402,-761.54,0.00036851,2]
[320842781,1711615832412,-161.997483,0.00037141,2]
[320842784,1711615832423,-1249.215123,0.00037141,2]
[320842787,1711615832433,-258.48,0.00037464,2]
[320842790,1711615832442,-250.0,0.00037601,112]
[320842794,1711615832452,-1370.20833248,0.00037791,4]
[320842796,1711615832461,-1695.86,0.00037821,2]
[320842799,1711615832470,-195.24782226,0.00037823,60]
[320842813,1711615832536,-189.67217774,0.00037823,60]
[320842816,1711615832546,-555.94,0.00037825,2]
[320842818,1711615832555,-250.0,0.00037887,2]
[320842820,1711615832565,-500.0,0.00037928,2]
[320842821,1711615832574,-2186.53,0.00038121,2]
[320842822,1711615832583,-468.13,0.00038133,15]
[320842823,1711615832593,-5078.62,0.0003823,2]
[320842824,1711615832602,-250.0,0.00038251,2]
[320842825,1711615832611,-879.03,0.00038262,2]
[320842826,1711615832620,-162.44,0.00038269,2]
[320842827,1711615832631,-177.66,0.00038272,2]
[320842828,1711615832644,-877.36,0.00038313,2]
[320842829,1711615832672,-176.57,0.00038356,2]
[320842830,1711615832683,-162.44,0.00038469,2]
[320842831,1711615832692,-5273.54,0.00038527,2]
[320842832,1711615832701,-174.47,0.00038541,2]
[320842833,1711615832710,-163.16329962,0.00038562,4]
[320842834,1711615832722,-23214.57795969,0.00038563,4]
[320842835,1711615832732,-296.43309979,0.00038563,4]
[320842836,1711615832742,-2577.65726799,0.00038563,4]
[320842837,1711615832753,-5389.01172397,0.00038563,4]
[320842838,1711615832764,-895.4099573,0.00038563,4]
[320842839,1711615832774,-643.90299712,0.00038563,4]
[320842840,1711615832784,-523.68096072,0.00038563,4]
[320842841,1711615832794,-405.9705404,0.00038564,4]
[320842842,1711615832804,-6995.75932984,0.00038564,4]
[320842843,1711615832816,-385.07,0.00038597,2]
[320842844,1711615832828,-162.44,0.00038668,2]
[320842845,1711615832839,-162.44,0.00038867,2]
[320842846,1711615832850,-1000.0,0.00039042,2]
[320842847,1711615832860,-162.44,0.00039067,2]
[320842848,1711615832871,-1009.72,0.00039132,2]
[320842849,1711615832881,-162.44,0.00039266,2]
[320842850,1711615832890,-2149.0,0.00039435,2]
[320842851,1711615832900,-162.44,0.00039466,2]
[320842852,1711615832910,-164.39,0.00039633,2]
[320842853,1711615832921,-162.44,0.00039665,2]
[320842854,1711615832931,-164.39,0.00039732,2]
[320842855,1711615832940,-164.39,0.00039831,2]
[320842856,1711615832950,-162.44,0.00039865,2]
[320842857,1711615832962,-162.44,0.00040064,2]
[320842858,1711615832974,-162.44,0.00040263,2]
[320842859,1711615832984,-793.72975578,0.00040397,2]
[320842860,1711615832994,-245.5657653,0.00040399,4]
[320842861,1711615833004,-483.14134,0.00040399,4]
[320842862,1711615833014,-160.61084689,0.000404,2]
[320842863,1711615833024,-151.63838329,0.000404,8]
[320842864,1711615833033,-200.15597255,0.000404,12]
[320842865,1711615833043,-169.56,0.0004049,2]
[320842866,1711615833053,-259.32771911,0.0004049,2]
[320842867,1711615833064,-164.52879711,0.00040497,2]
[320842868,1711615833074,-727.03554821,0.00040498,2]
[320842869,1711615833083,-238.07637591,0.00040498,4]
[320842870,1711615833093,-207.2795435,0.00040498,4]
[320842871,1711615833103,-790.64145535,0.00040498,4]
[320842872,1711615833112,-780.60517172,0.00040498,4]
[320842873,1711615833122,-419.01737774,0.00040499,31]
[320842874,1711615833133,-317695.14685838,0.000405,30]
[320842875,1711615833220,-1142.20683766,0.000405,30]
[320842876,1711615833233,-3999.94101724,0.000405,30]
[320842877,1711615833245,-5697.18430532,0.000405,30]
[320842878,1711615833258,-1413.4185898,0.000405,30]
[320842879,1711615833270,-3673.44938094,0.000405,30]
[320842880,1711615833283,-650.615055,0.000405,30]
[320842881,1711615833295,-281.06046,0.000405,30]
[320842882,1711615833308,-1952.33493913,0.000405,30]
[320842892,1711615837587,-706.044,0.000405,30]
[320842893,1711615837605,-3228.79589113,0.000405,30]
[320842894,1711615837626,-2017.49084565,0.000405,30]
[320842895,1711615837932,-842.96653711,0.000405,30]
[320842896,1711615838016,-4387.86220898,0.000405,30]
[320842954,1711615839883,-290.752,0.000405,30]
[320842955,1711615839943,-1578.96809843,0.000405,30]
[320842956,1711615839956,-7097.78701224,0.000405,30]
[320842974,1711615842627,-750.40155262,0.00040499,120]
[320842975,1711615842642,-504.52949531,0.00040499,120]
[320842976,1711615842652,-7156.48576593,0.000405,30]
[320842977,1711615842882,-5320.56525,0.000405,30]
[320842978,1711615843132,-27604.41488858,0.000405,30]
[320842979,1711615843181,-450360.49971362,0.000405,30]
[320842980,1711615843191,-202.31082471,0.000406,2]
[320842981,1711615843201,-81510.48270081,0.000407,2]
[320842982,1711615843210,-422.94775251,0.00040701,4]
[320842983,1711615843219,-277.02588984,0.00040701,4]
[320842984,1711615843230,-322.97420598,0.00040701,2]
[320842985,1711615843240,-385.07,0.00040861,2]
[320842986,1711615843251,-468.13,0.00040873,15]
[320842987,1711615843261,-638.6,0.00041096,30]
[320842988,1711615843271,-151.63838329,0.00041705,13]
[320842989,1711615843280,-2268.72,0.00041705,2]
[320842990,1711615843290,-2149.0,0.00042175,2]
[320842991,1711615843300,-793.72975574,0.00042614,2]
[320842992,1711615843310,-151.63838329,0.0004301,18]
[320842993,1711615843320,-385.07,0.00043125,2]
[320842994,1711615843330,-468.13,0.00043613,15]
[320842995,1711615843340,-1000.0,0.00043923,2]
[320842996,1711615843350,-202.31082468,0.00044175,2]
[320842997,1711615843359,-151.63838329,0.00044315,23]
[320842998,1711615843368,-793.72975574,0.00044831,2]
[320842999,1711615843378,-385.07,0.00045389,2]
[320843000,1711615843387,-483.14135,0.00045399,4]
[320843001,1711615843397,-151.63838329,0.0004562,28]
[320843002,1711615843406,-173.43722692,0.00046236,12]
[320843003,1711615843415,-468.13,0.00046353,15]
[320843004,1711615843427,-151.63838329,0.00046925,32]
[320843007,1711615843437,-793.72975574,0.00047047,2]
[320843009,1711615843446,-385.07,0.00047653,2]
[320843010,1711615843455,-202.31082468,0.0004775,2]
[320843011,1711615843465,-151.63838329,0.0004823,37]
[320843012,1711615843473,-258.0,0.00048453,2]
[320843013,1711615843482,-213.0,0.00048453,2]
[320843014,1711615843491,-42607.851,0.00048453,2]
[320843015,1711615843499,-1000.0,0.00048803,2]
[320843016,1711615843508,-468.13,0.00049092,15]
[320843017,1711615843519,-793.72975574,0.00049264,2]
[320843018,1711615843528,-752.26339247,0.000493,2]
[320843019,1711615843537,-177.66,0.00049504,120]
[320843020,1711615843547,-151.63838329,0.00049535,42]
[320843021,1711615843557,-385.07,0.00049917,2]
[320843022,1711615843566,-837.12721508,0.0005,2]
[320843023,1711615843577,-155.21017539,0.0005,2]
[320843024,1711615843586,-3314.18917334,0.0005,60]
[320843025,1711615843595,-42130.881573,0.0005,30]
[320843026,1711615843604,-1009.72,0.00050365,120]
[320843027,1711615843614,-483.14135,0.00050399,4]
[320843028,1711615843624,-161.997483,0.00050532,30]
[320843029,1711615843635,-1249.215123,0.00050532,30]
[320843030,1711615843646,-151.63838329,0.0005084,47]
[320843031,1711615843661,-1000.0,0.00050958,120]
[320843032,1711615843670,-503.88070271,0.00050958,120]
[320843033,1711615843682,-500.0,0.00050958,60]
[320843034,1711615843692,-1249.215123,0.00051164,30]
[320843035,1711615843701,-202.31082468,0.00051325,2]
[320843036,1711615843710,-161.997483,0.00051375,30]
[320843037,1711615843719,-213.0,0.00051453,2]
[320843038,1711615843729,-793.72975574,0.00051481,2]
[320843039,1711615843739,-157.49088874,0.00051499,60]
[320843040,1711615843748,-5140.43690237,0.00051536,2]
[320843041,1711615843757,-761.54,0.00051592,2]
[320843042,1711615843768,-1875.0,0.000516,17]
[320843043,1711615843777,-1249.215123,0.00051796,30]
[320843044,1711615843786,-468.13,0.00051832,120]
[320843045,1711615843797,-173.43722692,0.00051972,14]
[320843046,1711615843807,-559.17594326,0.00052,120]
[320843047,1711615843817,-300.86519479,0.00052,2]
[320843048,1711615843827,-500.0,0.00052054,60]
[320843049,1711615843836,-1451.56,0.00052054,120]
[320843050,1711615843846,-1000.0,0.00052055,30]
[320843051,1711615843855,-151.63838329,0.00052145,52]
[320843052,1711615843865,-385.07,0.00052181,2]
[320843053,1711615843875,-161.997483,0.00052217,30]
[320843054,1711615843885,-152.0,0.000524,3]
[320843055,1711615843894,-155.66497089,0.00052404,60]
[320843056,1711615843903,-1249.215123,0.00052427,30]
[320843057,1711615843913,-1000.0,0.000525,120]
[320843058,1711615843924,-166.66666667,0.00052693,60]
[320843059,1711615843934,-500.0,0.00052876,120]
[320843060,1711615843944,-500.0,0.00052876,120]
[320843061,1711615843953,-500.0,0.00052876,120]
[320843062,1711615843963,-500.0,0.00052876,120]
[320843063,1711615843972,-500.0,0.00052876,120]
[320843064,1711615843982,-1451.56,0.00052876,120]
[320843065,1711615843991,-1422.69,0.00052876,120]
[320843066,1711615844000,-1422.69,0.00052876,120]
[320843067,1711615844010,-1422.69,0.00052876,120]
[320843068,1711615844019,-1422.69,0.00052876,120]
[320843069,1711615844028,-1422.69,0.00052876,120]
[320843070,1711615844038,-1000.0,0.00053,120]
[320843071,1711615844047,-150.73,0.00053,120]
[320843072,1711615844057,-150.73,0.00053,120]
[320843073,1711615844066,-150.73,0.00053,120]
[320843074,1711615844075,-150.73,0.00053,120]
[320843075,1711615844085,-150.73,0.00053,120]
[320843076,1711615844094,-150.73,0.00053,120]
[320843077,1711615844103,-150.73,0.00053,120]
[320843078,1711615844112,-150.73,0.00053,120]
[320843079,1711615844121,-150.73,0.00053,120]
[320843080,1711615844130,-150.73,0.00053,120]
[320843081,1711615844140,-150.73,0.00053,120]
[320843082,1711615844149,-150.73,0.00053,120]
[320843083,1711615844158,-1249.215123,0.00053059,30]
[320843084,1711615844168,-161.997483,0.00053059,30]
[320843085,1711615844180,-618.57672727,0.0005315,60]
[320843086,1711615844189,-151.63838329,0.0005345,57]
[320843087,1711615844199,-1000.0,0.00053683,120]
[320843088,1711615844208,-793.72975574,0.00053698,2]
[320843089,1711615844218,-1451.56,0.00053698,120]
[320843090,1711615844227,-155.02482479,0.00053703,4]
[320843091,1711615844237,-162.85775373,0.00053703,3]
[320843092,1711615844247,-5140.43690237,0.00053764,2]
[320843093,1711615844257,-454.7289818,0.0005394,2]
[320843094,1711615844266,-200.0,0.00053987,3]
[320843095,1711615844276,-151.0,0.00053989,2]
[320843096,1711615844285,-150.73,0.0005399,120]
[320843097,1711615844295,-150.73,0.0005399,120]
[320843098,1711615844304,-100000.0,0.00054,54]
[320843099,1711615844313,-261.8192277,0.00054,30]
[320843100,1711615844323,-2000.0,0.00054,90]
[320843101,1711615844332,-8304.3455656,0.00054,50]
[320843102,1711615844341,-151.499665,0.00054,3]
[320843103,1711615844351,-151.0,0.00054,120]
[320843104,1711615844360,-151.0,0.00054,120]
[320843105,1711615844369,-478.705864,0.00054,120]
[320843106,1711615844378,-151.0,0.00054,120]
[320843107,1711615844388,-478.705864,0.00054,120]
[320843108,1711615844398,-151.0,0.00054,120]
[320843109,1711615844407,-151.0,0.00054,30]
[320843110,1711615844416,-1164.315904,0.0005414,26]
[320843111,1711615844430,-1000.0,0.0005416,26]
[320843112,1711615844439,-1000.0,0.0005418,26]
[320843113,1711615844448,-5000.0,0.00054182,2]
[320843114,1711615844458,-868.136996,0.000542,26]
[320843115,1711615844467,-1000.0,0.000542,26]
[320843116,1711615844476,-2000.0,0.00054211,5]
[320843117,1711615844485,-2000.0,0.00054211,5]
[320843118,1711615844494,-735.2165,0.00054211,2]
[320843119,1711615844503,-500.0,0.00054211,2]
[320843120,1711615844512,-500.0,0.00054211,2]
[320843121,1711615844521,-500.0,0.00054211,2]
[320843122,1711615844530,-500.0,0.00054211,2]
[320843123,1711615844539,-500.0,0.00054211,2]
[320843124,1711615844549,-539.4222,0.00054211,2]
[320843125,1711615844560,-150.73,0.00054236,120]
[320843126,1711615844570,-150.73,0.00054236,120]
[320843127,1711615844579,-259.32771911,0.00054236,2]
[320843128,1711615844588,-164.52879711,0.00054243,2]
[320843129,1711615844598,-2224.26571897,0.00054244,40]
[320843130,1711615844608,-180.05969999,0.00054244,4]
[320843131,1711615844617,-258.24255427,0.00054244,4]
[320843132,1711615844628,-212.02158261,0.00054244,4]
[320843133,1711615844647,-263.65725635,0.00054244,4]
[320843134,1711615844660,-314.43666356,0.00054244,4]
[320843135,1711615844670,-406.14776931,0.00054244,4]
[320843136,1711615844684,-485.53986145,0.00054244,4]
[320843137,1711615844693,-202.99503572,0.00054244,4]
[320843138,1711615844701,-155.64136116,0.00054244,4]
[320843139,1711615844710,-659.79800207,0.00054244,4]
[320843140,1711615844721,-151.0,0.00054244,60]